Cogmind - Beta 14 @@@ ROGUE MODE // 2024.12.12 @ 01:17:17 Player: boba Result: Self-destructed Performance ------------- Evolutions (1) 500 Regions Visited (2) 400 Robots Destroyed (6) 30 Value Destroyed (152) 152 Prototype IDs (1) 20 Alien Tech Used (0) 0 Bonus (0) 0 TOTAL SCORE: 1102 Bonus ------- None Cogmind --------- Core Integrity 319/400 Matter 59/300 Energy 100/100 System Corruption 0% Temperature Cool (0) Movement Core (200) Ox3 Location -9/Materials Parts ------- > --- POWER (1) -------- (None) > --- PROPULSION (2) --- (None) > --- UTILITY (2) ------ Small Storage Unit Target Analyzer > --- WEAPON (4) ------- Improved Grenade Launcher > --- INVENTORY (8) ---- Aerolev Unit Aerolev Unit Datajack Peak State ------------ > --- POWER ------------ Ion Engine > --- PROPULSION ------- Aerolev Unit Aerolev Unit > --- UTILITY ---------- Small Storage Unit Target Analyzer > --- WEAPON ----------- Improved Grenade Launcher Improved Grenade Launcher Improved Grenade Launcher Improved Grenade Launcher > --- INVENTORY -------- Aluminum Leg Datajack [Rating: 25] Favorites ----------- Power Ion Engine Engine Ion Engine Propulsion Aluminum Leg Leg Aluminum Leg Hover Unit Aerolev Unit Utility Small Storage Unit Device Heat Sink Storage Small Storage Unit Processor Target Analyzer Weapon Improved Grenade Launcher Energy Gun Small Laser Energy Cannon Beam Cannon Ballistic Gun Light Assault Rifle Launcher Improved Grenade Launcher Build | -11 -10 -9 ------- Run | Yrd Mat Mat Slots Evolved 2 | . . 2 Power . | . . . Propulsion . | . . . Utility . | . . . Weapon 2 | . . 2 Parts Attached 18 | 6 2 10 Power 1 | 1 . . Engine 1 | 1 . . Core . | . . . Reactor . | . . . Propulsion 5 | 2 . 3 Treads . | . . . Leg 3 | 2 . 1 Wheel . | . . . Hover 2 | . . 2 Flight . | . . . Utility 4 | 1 1 2 Device 1 | . 1 . Storage 2 | 1 . 1 Processor 1 | . . 1 Hackware . | . . . Protection . | . . . Artifact . | . . . Weapon 8 | 2 1 5 Energy Gun 2 | 1 . 1 Energy Cannon 1 | . 1 . Ballistic Gun 1 | 1 . . Ballistic Cannon . | . . . Launcher 4 | . . 4 Special Weapon . | . . . Impact Weapon . | . . . Slashing Weapon . | . . . Piercing Weapon . | . . . Special Melee Weapon . | . . . Unidentified Prototypes 1 | . . 1 Parts Lost 6 | . 1 5 Power 1 | . . 1 Propulsion 2 | . 1 1 Utility . | . . . Weapon 3 | . . 3 Highest Loss Streak 5 | . 1 5 To Critical Strikes . | . . . Average Slot Usage (%) 86 | . 88 83 Engine 13 | . 14 11 Leg 22 | . 28 10 Device 3 | . 3 3 Storage 13 | . 14 11 Processor 2 | . . 7 Energy Gun 2 | . 2 2 Energy Cannon 8 | . 11 2 Ballistic Gun 10 | . 14 2 Launcher 9 | . . 32 Peak Build Rating 25 | 6 7 25 Average Rating 8 | 4 6 14 On Entrance 4 | . 6 6 Naked Turns . | . . . Heaviest Build 35 | 12 15 35 Greatest Support 20 | 20 20 16 Greatest Overweight (x) 4 | 1 1 4 Average Overweight (x) . | . . 2 Largest Inventory Capacity 8 | 8 8 8 Average Capacity 7 | 6 8 8 Most Carried 5 | . 2 5 Average Carried 1 | . 1 2 Final Capacity 8 | 8 8 8 Final Carried 3 | . 2 3 Class Distribution -------------------- 74% | Mutant 25% | Gunner Dominant Class ---------------- Mutant | -10/Materials Gunner | -9/Materials Resources | -11 -10 -9 ----------- Run | Yrd Mat Mat Matter Collected 121 | 41 62 18 Remotely . | . . . Salvage Created 119 | . 103 16 Parts 10 | . 9 1 Haulers Intercepted . | . . . Recyclers Shooed . | . . . Parts Field Recycled . | . . . Retrieved Matter . | . . . Parts Self-Destructed . | . . . Prevented . | . . . Kills | -11 -10 -9 ------- Run | Yrd Mat Mat Combat Hostiles Destroyed 6 | . 3 3 Guns 1 | . 1 . Cannons 2 | . 2 . AOE 3 | . . 3 Classes Destroyed 2 | . 1 1 Swarmer 3 | . . 3 Grunt 3 | . 3 . Best Kill Streak 3 | . 2 3 Combat Bots Only 3 | . 2 3 Max Kills in Single Turn 2 | . 1 2 Gunslinging . | . . . Exploded 2 | . . 2 Melee . | . . . Uniques/NPCs Destroyed . | . . . Combat | -11 -10 -9 -------- Run | Yrd Mat Mat Hostile Shots Fired 109 | . 44 65 Missed 32 | . 12 20 Damage Taken 841 | . 322 519 Core 151 | . 70 81 Absorbed by Shields . | . . . Core Remaining (%) 86 | 100 72 . Volleys Fired 19 | . 17 2 Largest 2 | . 2 1 Hottest 80 | . 80 36 Shots Fired 36 | . 34 2 Gun 21 | . 21 . Cannon 13 | . 13 . Launcher 2 | . . 2 Special . | . . . Kinetic 17 | . 17 . Thermal 17 | . 17 . Explosive 2 | . . 2 Electromagnetic . | . . . Robot Hit Streak 6 | . 6 1 Robot Miss Streak 5 | . 5 . Penetration Max . | . . . Secondary Targets . | . . . Shots Hit Robots 18 | . 17 1 Core Hits 9 | . 7 2 Critical Kills . | . . . Critical Parts Destroyed . | . . . Critical Strikes . | . . . Melee Attacks . | . . . Impact . | . . . Slashing . | . . . Piercing . | . . . Sneak Attacks . | . . . Combat Hostiles . | . . . Follow-up Attacks . | . . . Damage Inflicted 378 | . 199 179 Guns 94 | . 94 . Cannons 105 | . 105 . Explosions 166 | . . 166 Melee . | . . . Ramming 13 | . . 13 Kinetic 71 | . 71 . Thermal 128 | . 128 . Explosive 166 | . . 166 Electromagnetic . | . . . Impact . | . . . Slashing . | . . . Piercing . | . . . Highest Corruption . | . . . Average Corruption . | . . . Corruption Purged . | . . . Corruption Blocked . | . . . Overload Shots . | . . . Overflow Damage 10 | . . 10 Projectiles . | . . . Explosions 10 | . . 10 Melee . | . . . Knockbacks . | . . . Impact . | . . . Kinetic . | . . . Secondary . | . . . Self-Inflicted Damage 56 | . . 56 Shots 1 | . . 1 Rammed 3 | . . 3 Targets Rammed 10 | . . 10 Kicked 7 | . . 7 Crushed . | . . . Highest Temperature 156 | . 156 4 Average Temperature 46 | . 47 4 Received Heat Transfer 237 | . 138 99 Siege Activations . | . . . Robots Corrupted . | . . . Combat Hostiles . | . . . Parts Fried . | . . . Impact Corruptions . | . . . Robots Melted . | . . . Combat Hostiles . | . . . Parts Melted . | . . . Heat Transferred 272 | . 272 . Parts Sabotaged . | . . . Parts Stolen . | . . . Parts Stripped . | . . . Power Chain Reactions . | . . . Alert | -11 -10 -9 ------- Run | Yrd Mat Mat Peak Influence 164 | . 164 151 Initial 65 | . . 65 Average 78 | . 82 96 Maximum Alert Level . | . . . Low Security (%) 100 | 100 100 100 Level 1 . | . . . Level 2 . | . . . Level 3 . | . . . Level 4 . | . . . Level 5 . | . . . High Security . | . . . Max Security . | . . . Squads Dispatched 3 | . 2 1 Investigation . | . . . Extermination . | . . . Reinforcement 3 | . 2 1 Assault . | . . . Garrison . | . . . Intercept . | . . . Searches Triggered . | . . . Construction Impeded . | . . . Haulers Reinforced . | . . . Active Scanning Responses . | . . . Cargo Convoy Interrupts . | . . . Stealth | -11 -10 -9 --------- Run | Yrd Mat Mat Distress Signals 2 | . 1 1 Communications Jammed . | . . . Distress Signals . | . . . Times Spotted 22 | . 16 6 Peak Tracking Total 9 | . 9 4 Tactical Retreats . | . . . Traps | -11 -10 -9 ------- Run | Yrd Mat Mat Traps Triggered . | . . . Indirectly . | . . . Trap Hack Attempts . | . . . Triggered . | . . . Disarmed . | . . . Reprogrammed . | . . . Reused . | . . . Traps Extracted . | . . . Installed . | . . . Triggered . | . . . Machines | -11 -10 -9 ---------- Run | Yrd Mat Mat Machines Disabled 2 | . 2 . Max in Single Turn 1 | . 1 . Machines Repaired . | . . . Machines Dismantled . | . . . Machines Sabotaged . | . . . Overloaded Fab Kills . | . . . Hacking | -11 -10 -9 --------- Run | Yrd Mat Mat Machines Accessed 2 | . 2 . Terminals 2 | . 2 . Fabricators . | . . . Repair Stations . | . . . Recycling Units . | . . . Scanalyzers . | . . . Garrison Access . | . . . Total Hacks 4 | . 4 . Successful 3 | . 3 . Failed 1 | . 1 . Catastrophic . | . . . Database Lockouts . | . . . Manual . | . . . Terminals 4 | . 4 . Fabricators . | . . . Repair Stations . | . . . Recycling Units . | . . . Scanalyzers . | . . . Garrison Access . | . . . Terminal Hacks 3 | . 3 . Emergency Access Points 1 | . 1 . Locate Traps 1 | . 1 . Investigation Status 1 | . 1 . Fabricator Hacks . | . . . Repair Station Hacks . | . . . Recycling Unit Hacks . | . . . Scanalyzer . | . . . Garrison Access Hacks . | . . . Unauthorized Hacks . | . . . Terminals . | . . . Fabricators . | . . . Repair Stations . | . . . Recycling Units . | . . . Scanalyzers . | . . . Garrison Access . | . . . Data Cores Recovered . | . . . Used . | . . . Hacking Detections 2 | . 2 . Full Trace Events . | . . . Feedback Events . | . . . Feedback Blocked . | . . . Robot Schematics Acquired . | . . . Robots Built . | . . . Authchips . | . . . Time . | . . . Total Robot Build Rating . | . . . Part Schematics Acquired . | . . . Parts Built . | . . . Authchips . | . . . Time . | . . . Total Part Build Rating . | . . . Parts Repaired . | . . . Time . | . . . Parts Recycled . | . . . Recycled Matter . | . . . Retrieved Matter . | . . . Retrieved Components . | . . . Parts Scanalyzed . | . . . Part Schematics Acquired . | . . . Parts Damaged . | . . . Bothacking | -11 -10 -9 ------------ Run | Yrd Mat Mat Used RIF Installer . | . . . Robots Hacked . | . . . Non-combat . | . . . Combat . | . . . Robot Hacks Applied . | . . . Relay Couplers Released . | . . . Fabnet Peak Effective % . | . . . Robots Rewired . | . . . Allies Hacked . | . . . Hacks Repelled . | . . . Allies | -11 -10 -9 -------- Run | Yrd Mat Mat Total Allies . | . . . Largest Group . | . . . Highest-Rated Group . | . . . Highest-Rated Ally . | . . . Total Orders . | . . . Ally Attacks . | . . . Total Damage . | . . . Kills . | . . . Allies Corrupted . | . . . Allies Melted . | . . . Intel | -11 -10 -9 ------- Run | Yrd Mat Mat Robot Analysis Total . | . . . Derelict Logs Recovered . | . . . Drone Launches . | . . . Drone Recoveries . | . . . Exploration | -11 -10 -9 ------------- Run | Yrd Mat Mat Turns Passed 517 | 49 321 147 Spaces Moved 291 | 36 222 33 Core 8 | 8 . . Treads . | . . . Legs 281 | 28 222 31 Wheels . | . . . Hover 2 | . . 2 Flight . | . . . Fastest Speed 50 | 50 120 166 Average Speed 136 | 110 120 273 Slowest Speed 330 | 120 190 330 Overloaded Moves . | . . . Propulsion Burnouts . | . . . Robots Hopped . | . . . Cave-ins Triggered . | . . . Exploration Rate (%) 15 | 3 38 5 Regions Visited 2 Branch Regions . Pre-discovered Areas . | . . . Known Exits Taken . | . . . Unknown Exits Taken 2 | 1 1 . Scrap Searched . | . . . Spaces Dug . | . . . Terrain Destroyed 20 | . . 20 Melee . | . . . Projectile . | . . . AOE 20 | . . 20 Terrain Rammed . | . . . Walls Destroyed . | . . . Machines Disabled . | . . . Actions | -11 -10 -9 --------- Run | Yrd Mat Mat Total 356 | 42 245 69 Wait 5 | 1 3 1 Move 289 | 35 221 33 Hop . | . . . Pick Up 4 | . 2 2 Fast Attach 12 | 6 1 5 Attach 4 | . . 4 Detach 7 | . . 7 Swap 2 | . 1 1 Drop 4 | . . 4 Fire 19 | . 17 2 Melee . | . . . Ram 3 | . . 3 Kick 7 | . . 7 Crush . | . . . Escape Stasis . | . . . Rewire . | . . . Trap . | . . . Miscellaneous . | . . . Route ------- -11/Scrapyard -10/Materials (discovered 2 exits: [*Mat] / [*Min]) -9/Materials History --------- Turn | Location | Event 6 | -11/Scrapyard | Discovered new exit (range 16) 50 | -11/Scrapyard | Entered Materials 64 | -10/Materials | Discovered new exit (range 16) 209 | -10/Materials | Discovered new exit (range 5) 329 | -10/Materials | Build established: Mutant 371 | -10/Materials | Entered another Materials area 371 | -9/Materials | Evolved 2 slots: Weapon x2 518 | -9/Materials | Self-destructed Last Messages --------------- M012. 00502_ O-16 Technician locks terminal. 00503_ Imp. Grenade Launcher destroyed. 00503_ U-05 Engineer lays Concrete. 00505_ Kicked Y-45 Defender. 00505_ U-05 Engineer lays Concrete. 00507_ The unstable cave ceiling collapses. 00507_ Aluminum Leg destroyed. 00507_ Slammed into Y-45 Defender. 00508_ U-05 Engineer lays Concrete. 00510_ U-05 Engineer builds a Wall. 00511_ Slammed into Y-45 Defender. 00512_ U-05 Engineer builds a Wall. 00514_ Imp. Grenade Launcher destroyed. 00515_ Slammed into Y-45 Defender. 00515_ Destabilizing: System interference. 00515_ Target Analyzer temporarily disabled. 00516_ Critical hit (Burn: +37). 00516_ U-05 Engineer builds a Wall. 00517_ Ion Engine destroyed. Map ----- +----------------------------------------------------+ | ?????????????????????????????????????????????????? | | ?????????????????????????????????????????????????? | | ?????????????????????????????????????????????????? | | ?????????????????????????????????????????????????? | | ?????????????????????????????????????????????????? | | ???????????????????????????????????###???????????? | | ????????????????????????#####????? #???????????? | | ????????????????????????# #? #???????????? | | ????????????????????##### #! #???????????? | | ????????????????????#== # [[[ #???????????? | | ????????????????????# + [[[ #???????????? | | ????????????????????#!! # [[ ????????????? | | ????????????????????# ! # ??????????????? | | ????????????????????# # ????????????????? | | ????????????????????# * # ??????????????????? | | ?????????????????######## u###??????????????????? | | ?????????????????#!!! # u# #??????????????????? | | ?????????????????#!!! + # #??????????????????? | | ?????????????????#!!! # #??????????????????? | | ?????????????????# # #??????????????????? | | ?????????????????# # # #??????????????????? | | ?????????????????# # ##??????????????????? | | ?????????????????######## ##???????????????????? | | ???????????????????????## #????????????????????? | | ?????????????????########Y ####### ??????? | | ?????????????????# @ #????????? | | ?????????????????# T #????????? | | ?????????????????# #????????? | | ?????????????????# #####+######## o #????????? | | ?????????????????# ??????????????????###????????? | | ?????????????????# ??????????????????????????????? | | ?????????????????#???????????????????????????????? | | ?????????????????????????????????????????????????? | | ?????????????????????????????????????????????????? | | ?????????????????????????????????????????????????? | | ?????????????????????????????????????????????????? | | ?????????????????????????????????????????????????? | | ?????????????????????????????????????????????????? | | ?????????????????????????????????????????????????? | | ?????????????????????????????????????????????????? | | ?????????????????????????????????????????????????? | | ?????????????????????????????????????????????????? | | ?????????????????????????????????????????????????? | | ?????????????????????????????????????????????????? | | ?????????????????????????????????????????????????? | | ?????????????????????????????????????????????????? | | ?????????????????????????????????????????????????? | | ?????????????????????????????????????????????????? | | ?????????????????????????????????????????????????? | | ?????????????????????????????????????????????????? | +----------------------------------------------------+ Best States ------------- Heat Dissipation 38 Energy Generation 10 Energy Capacity 250 Matter Stores 121 Matter Capacity 300 Sight Range 16 Terrain Scan Density 10 Evasion (%) 55 Target Analysis 5 Item Schematics ----------------- None Robot Schematics ------------------ None Fabricated ------------ Nothing Alien Tech Used ----------------- None Achievements -------------- Let's See Who's Tougher Challenges ------------ None Game ------ Seed PotentialServoWings Manual? 0 Play Time 00:10:25 Cumulative 3.3 hours Start 2024.12.12 @ 01:09:32 End 2024.12.12 @ 01:17:17 Sessions 1 Manual Loads 0 Difficulty Rogue Special Mode None Game No. 7 Rogue 4 Adventurer 3 Explorer 0 Win Type - Total 0 Types 0/0/0/0/0/0/0/0/0 Lore% 0 Gallery% 7 Achievement% 9 Wizard Run 0 Options --------- Layout 0 ASCII 0 Keyboard 1 Movement Numpad Keybinds 0 Fullscreen 1 Font 18/SmallcapsGlow Map View 76x50 Zoom Use 0% Tactical HUD 1 Map Filters NONE Filters NONE Steam 0 RUN: 97ff005b-633d-42b7-ac7d-b3896e2d29c3